Cogmind - Beta 13 @@@ ROGUE MODE // 2024.03.13 @ 23:55:50 Player: Mogwok Wargfriend Result: Destroyed by S-27 Virus with Autogun Performance ------------- Evolutions (3) 1500 Regions Visited (7) 1400 Robots Destroyed (152) 760 Value Destroyed (3410) 3410 Prototype IDs (14) 280 Alien Tech Used (0) 0 Bonus (300) 300 TOTAL SCORE: 7650 Bonus ------- Met Data Miner 300 Cogmind --------- Core Integrity 0/700 Matter 300/300 Energy 72/100 System Corruption 46% Temperature Cool (0) Movement Core (100) Ox1 Location -6/Proximity Caves Parts ------- > --- POWER (1) -------- (None) > --- PROPULSION (4) --- (None) > --- UTILITY (6) ------ Improved Melee Analysis Suite Target Analyzer Hacking Suite > --- WEAPON (2) ------- Great Axe > --- INVENTORY (5) ---- Improved Ion Engine Hacking Suite Makeshift Hacking Suite Improved Datajack Peak State ------------ > --- POWER ------------ Improved Deuterium Engine > --- PROPULSION ------- Armored Treads Armored Treads Armored Huge Wheel > --- UTILITY ---------- Medium Storage Unit Improved Melee Analysis Suite Target Analyzer Target Analyzer Improved Power Shielding Hacking Suite > --- WEAPON ----------- Power Maul Spear > --- INVENTORY -------- Improved Ion Engine Improved Heat Sink Melee Analysis Suite Hacking Suite Makeshift Hacking Suite Heavy Assault Rifle Improved Assault Rifle Improved Datajack Power Maul Great Axe [Rating: 46] Favorites ----------- Power Improved Ion Engine Engine Improved Ion Engine Power Core Light Nuclear Core Propulsion Aluminum Leg Treads Armored Treads Leg Aluminum Leg Wheel Armored Huge Wheel Utility Hacking Suite Device Improved Heat Sink Storage Medium Storage Unit Processor Target Analyzer Hackware Hacking Suite Protection Improved Power Shielding Weapon Improved Assault Rifle Energy Gun Heavy EM Shotgun Ballistic Gun Improved Assault Rifle Ballistic Cannon Light Cannon Impact Weapon Power Maul Slashing Weapon Great Axe Piercing Weapon Spear Build | -11 -10 -9 -8 -7 -7 -7 -6 ------- Run | Yrd Mat Mat Mat Fac Low Dat Pro Slots Evolved 6 | . . 2 2 2 . . . Power . | . . . . . . . . Propulsion 2 | . . 1 1 . . . . Utility 4 | . . 1 1 2 . . . Weapon . | . . . . . . . . Parts Attached 105 | 6 15 20 28 27 3 . 6 Power 14 | 1 2 3 3 3 . . 2 Engine 13 | 1 2 3 3 2 . . 2 Core 1 | . . . . 1 . . . Reactor . | . . . . . . . . Propulsion 39 | 2 6 8 13 7 2 . 1 Treads 3 | . . . . 1 2 . . Leg 32 | . 5 8 13 5 . . 1 Wheel 4 | 2 1 . . 1 . . . Hover . | . . . . . . . . Flight . | . . . . . . . . Utility 26 | 1 1 5 7 10 1 . 1 Device 8 | . 1 . 5 1 . . 1 Storage 4 | 1 . 1 1 1 . . . Processor 5 | . . 1 . 3 1 . . Hackware 3 | . . 1 1 1 . . . Protection 6 | . . 2 . 4 . . . Artifact . | . . . . . . . . Weapon 26 | 2 6 4 5 7 . . 2 Energy Gun 10 | 1 3 . 1 5 . . . Energy Cannon . | . . . . . . . . Ballistic Gun 10 | 1 1 4 4 . . . . Ballistic Cannon 2 | . 2 . . . . . . Launcher . | . . . . . . . . Special Weapon . | . . . . . . . . Impact Weapon 2 | . . . . 1 . . 1 Slashing Weapon 1 | . . . . . . . 1 Piercing Weapon 1 | . . . . 1 . . . Special Melee Weapon . | . . . . . . . . Unidentified Prototypes 2 | . . 1 1 . . . . Corrupted Parts 4 | . . . . 2 . . 2 System Corruption 30 | . . . . 19 . . 11 Parts Lost 43 | . 1 6 4 25 . . 7 Power 4 | . . . . 4 . . . Propulsion 18 | . 1 3 2 8 . . 4 Utility 14 | . . 2 1 9 . . 2 Weapon 7 | . . 1 1 4 . . 1 Highest Loss Streak 8 | . 1 2 2 8 . . 4 To Critical Strikes 2 | . . 1 . 1 . . . Average Slot Usage (%) 93 | . 94 98 99 87 79 84 82 Engine 8 | . 14 10 9 4 . . 5 Treads 1 | . . . . . 10 15 9 Leg 24 | . 18 32 35 22 . . 2 Wheel 2 | . 9 . . . 7 7 5 Device 4 | . 9 . 8 3 . . . Storage 9 | . 14 11 9 8 7 7 6 Processor 5 | . . 3 . 6 22 23 23 Hackware 10 | . . 10 18 13 7 7 7 Protection 4 | . . 7 . 7 7 7 6 Energy Gun 2 | . 5 . . 6 . . . Ballistic Gun 9 | . 5 13 17 2 . . . Ballistic Cannon 4 | . 15 8 . . . . . Impact Weapon 1 | . . . . 2 7 7 5 Piercing Weapon 1 | . . . . 2 7 7 6 Naked Turns . | . . . . . . . . Heaviest Build 31 | 12 17 26 27 31 17 17 27 Greatest Support 57 | 3 26 30 57 57 28 28 28 Greatest Overweight (x) 7 | 3 . 2 . 1 . . 7 Average Overweight (x) . | 1 . . . . . . . Largest Inventory Capacity 10 | 8 8 10 10 10 10 10 10 Average Capacity 9 | 6 8 9 10 10 10 10 9 Most Carried 10 | 6 8 10 10 10 10 10 10 Average Carried 8 | 4 7 8 9 7 9 10 9 Final Capacity 10 | 8 8 10 10 10 10 10 5 Final Carried 10 | 6 8 10 10 8 10 10 4 Class Distribution -------------------- 63% | Scavenger-Mutant 21% | Mutant 7% | Scavenger-Gladiator 7% | Gladiator Dominant Class ---------------- Mutant | -10/Materials Scavenger-Mutant | -9/Materials Scavenger-Mutant | -8/Materials Scavenger-Mutant | -7/Factory Gladiator | -7/Lower Caves Gladiator | -7/Data Miner Scavenger-Gladiator | -6/Proximity Caves Resources | -11 -10 -9 -8 -7 -7 -7 -6 ----------- Run | Yrd Mat Mat Mat Fac Low Dat Pro Matter Collected 3404 | 260 393 1129 1005 400 24 . 193 Remotely . | . . . . . . . . Salvage Created 5418 | . 848 1476 1604 1321 . . 169 Parts 319 | . 47 90 98 81 . . 3 Haulers Intercepted 7 | . 2 2 3 . . . . Recyclers Shooed 8 | . 1 2 2 3 . . . Parts Field Recycled . | . . . . . . . . Retrieved Matter . | . . . . . . . . Parts Self-Destructed . | . . . . . . . . Prevented 3 | . . . . . . . 3 Kills | -11 -10 -9 -8 -7 -7 -7 -6 ------- Run | Yrd Mat Mat Mat Fac Low Dat Pro Combat Hostiles Destroyed 76 | . 10 25 21 17 . . 3 Melee 3 | . . . . 2 . . 1 Guns 46 | . 5 14 21 6 . . . Cannons 16 | . 5 11 . . . . . AOE 2 | . . . . 2 . . . Classes Destroyed 14 | . 6 6 . 2 . . . Worker 20 | . 4 4 2 10 . . . Builder 9 | . . 1 3 5 . . . Tunneler 3 | . . 3 . . . . . Hauler 7 | . 2 2 3 . . . . Recycler 16 | . 3 5 5 3 . . . Mechanic 3 | . . 2 1 . . . . Operator 7 | . 2 3 1 1 . . . Watcher 11 | . 2 3 4 2 . . . Swarmer 20 | . . 7 8 5 . . . Grunt 34 | . 10 12 7 4 . . 1 Brawler 2 | . . 1 . 1 . . . Duelist 3 | . . . . 2 . . 1 Sentry 15 | . . 5 6 3 . . 1 Programmer 2 | . . . . 2 . . . Best Kill Streak 17 | . 6 5 6 17 . . 2 Combat Bots Only 6 | . 2 4 6 3 . . 2 Max Kills in Single Turn 5 | . 2 1 2 5 . . 1 Gunslinging . | . . . . . . . . Exploded 1 | . . . . 1 . . . Melee 1 | . . . . 1 . . 1 Uniques/NPCs Destroyed . | . . . . . . . . Combat | -11 -10 -9 -8 -7 -7 -7 -6 -------- Run | Yrd Mat Mat Mat Fac Low Dat Pro Hostile Shots Fired 648 | . 30 172 135 207 . . 104 Missed 201 | . 7 40 34 89 . . 31 Damage Taken 6921 | . 325 1598 1403 2433 . . 1162 Core 1087 | . 59 188 129 350 . . 361 Absorbed by Shields . | . . . . . . . . Redirected to Shielding 63 | . . . . 60 . . 3 Regen/Repaired (Parts) 434 | . . 198 236 . . . . Core Remaining (%) 76 | 100 76 53 76 . . . . Volleys Fired 394 | . 68 143 133 50 . . . Largest 2 | . 2 2 2 2 . . . Hottest 100 | . 70 70 46 100 . . . Shots Fired 719 | . 133 261 228 97 . . . Gun 544 | . 81 138 228 97 . . . Cannon 175 | . 52 123 . . . . . Launcher . | . . . . . . . . Special . | . . . . . . . . Kinetic 602 | . 93 261 228 20 . . . Thermal 23 | . 23 . . . . . . Explosive . | . . . . . . . . Electromagnetic 94 | . 17 . . 77 . . . Robot Hit Streak 34 | . 8 23 34 14 . . . Robot Miss Streak 5 | . 4 5 4 5 . . . Penetration Max . | . . . . . . . . Secondary Targets 3 | . . . 2 1 . . . Max Gunslinging Chain 1 | . . . 1 1 . . . Shots Hit Robots 499 | . 68 159 172 94 . . 6 Core Hits 219 | . 35 60 68 55 . . 1 Critical Kills 3 | . . 1 . 1 . . 1 Critical Parts Destroyed 5 | . . . . 3 . . 2 Critical Strikes 13 | . 2 3 . 5 . . 3 Destroy 1 | . . 1 . . . . . Blast 4 | . 2 2 . . . . . Smash 7 | . . . . 4 . . 3 Impale 1 | . . . . 1 . . . Melee Attacks 51 | . . . . 40 2 . 9 Impact 40 | . . . . 32 2 . 6 Slashing 1 | . . . . . . . 1 Piercing 10 | . . . . 8 . . 2 Sneak Attacks 1 | . . . . 1 . . . Combat Hostiles . | . . . . . . . . Follow-up Attacks 5 | . . . . 5 . . . Damage Inflicted 9916 | . 1022 2704 2640 3269 . . 281 Guns 6017 | . 504 1542 2640 1331 . . . Cannons 1646 | . 489 1157 . . . . . Explosions 886 | . 27 . . 859 . . . Melee 1360 | . . . . 1079 . . 281 Ramming 7 | . 2 5 . . . . . Kinetic 6117 | . 642 2699 2640 136 . . . Thermal 1033 | . 202 . . 831 . . . Explosive 28 | . . . . 28 . . . Electromagnetic 1371 | . 176 . . 1195 . . . Impact 1191 | . . . . 910 . . 281 Slashing . | . . . . . . . . Piercing 169 | . . . . 169 . . . Highest Corruption 46 | . . 4 8 34 34 34 46 Average Corruption 15 | . . 4 7 18 34 34 42 Corruption Purged . | . . . . . . . . Corruption Blocked 1 | . . . . 1 . . . Effects 150 | . . 32 22 46 18 5 27 Message Errors 33 | . . 7 8 10 4 . 4 Matter Fused 42 | . . 7 6 9 8 3 9 Heat Flow Errors 14 | . . 7 . 4 1 1 1 Energy Discharges 24 | . . 3 2 9 3 1 6 Parts Rejected 1 | . . . . . . . 1 Parts Fused 1 | . . . 1 . . . . Data Loss (minor) 10 | . . 2 1 4 . . 3 Data Loss (major) 7 | . . 1 2 3 1 . . Misfires 4 | . . 2 . 2 . . . Alerts 6 | . . . 2 1 1 . 2 Misdirections 4 | . . . . 3 . . 1 Weapon Failures 4 | . . 3 . 1 . . . Overload Shots . | . . . . . . . . Overflow Damage 575 | . 13 10 . 446 . . 106 Projectiles 23 | . 13 10 . . . . . Explosions 197 | . . . . 197 . . . Melee 355 | . . . . 249 . . 106 Knockbacks 24 | . 3 15 . 3 . . 3 Impact 6 | . . . . 3 . . 3 Kinetic 16 | . 3 13 . . . . . Secondary 2 | . . 2 . . . . . Self-Inflicted Damage 442 | . . . . 442 . . . Shots 8 | . . . . 8 . . . Rammed . | . . . . . . . . Targets Rammed 2 | . 1 1 . . . . . Kicked 2 | . 1 1 . . . . . Crushed . | . . . . . . . . Highest Temperature 360 | . 176 360 11 219 108 265 252 Average Temperature 81 | . 59 96 3 49 57 146 107 Received Heat Transfer 1869 | . 186 594 576 267 . . 246 Effects 1 | . . 1 . . . . . Energy Bleed 1 | . . 1 . . . . . Siege Activations . | . . . . . . . . Robots Corrupted 3 | . . . . 3 . . . Combat Hostiles 3 | . . . . 3 . . . Parts Fried 15 | . 1 . . 11 . . 3 Impact Corruptions 16 | . . . . 13 . . 3 Robots Melted . | . . . . . . . . Combat Hostiles . | . . . . . . . . Parts Melted 1 | . 1 . . . . . . Heat Transferred 1300 | . 450 . . 850 . . . Parts Sabotaged . | . . . . . . . . Parts Stolen . | . . . . . . . . Parts Stripped . | . . . . . . . . Power Chain Reactions 7 | . 1 . . 6 . . . Alert | -11 -10 -9 -8 -7 -7 -7 -6 ------- Run | Yrd Mat Mat Mat Fac Low Dat Pro Peak Influence 406 | . 165 335 406 385 . . . Initial 122 | . . 35 122 . . . . Average 151 | . 54 169 237 114 . . . Maximum Alert Level 2 | . . 1 2 1 . . . Low Security (%) 62 | 100 100 57 29 72 . . . Level 1 37 | . . 42 69 27 . . . Level 2 . | . . . . . . . . Level 3 . | . . . . . . . . Level 4 . | . . . . . . . . Level 5 . | . . . . . . . . High Security . | . . . . . . . . Max Security . | . . . . . . . . Squads Dispatched 15 | . 5 4 3 3 . . . Investigation 5 | . 2 1 2 . . . . Extermination 2 | . . . . 2 . . . Reinforcement 8 | . 3 3 1 1 . . . Assault . | . . . . . . . . Garrison . | . . . . . . . . Intercept . | . . . . . . . . Searches Triggered . | . . . . . . . . Construction Impeded 1 | . . . . 1 . . . Haulers Reinforced . | . . . . . . . . Active Scanning Responses . | . . . . . . . . Cargo Convoy Interrupts 1 | . . . . 1 . . . Stealth | -11 -10 -9 -8 -7 -7 -7 -6 --------- Run | Yrd Mat Mat Mat Fac Low Dat Pro Distress Signals 4 | . 1 1 1 1 . . . Communications Jammed . | . . . . . . . . Distress Signals . | . . . . . . . . Times Spotted 135 | . 20 44 31 27 1 . 12 Peak Tracking Total 6 | . 4 5 6 4 1 . 5 Tactical Retreats 11 | . . . 1 6 1 . 3 Traps | -11 -10 -9 -8 -7 -7 -7 -6 ------- Run | Yrd Mat Mat Mat Fac Low Dat Pro Traps Triggered 10 | . 4 . 5 . . . 1 Indirectly . | . . . . . . . . Trap Hack Attempts . | . . . . . . . . Triggered . | . . . . . . . . Disarmed . | . . . . . . . . Reprogrammed . | . . . . . . . . Reused . | . . . . . . . . Traps Extracted . | . . . . . . . . Installed . | . . . . . . . . Triggered 5 | . . . . 3 2 . . Machines | -11 -10 -9 -8 -7 -7 -7 -6 ---------- Run | Yrd Mat Mat Mat Fac Low Dat Pro Machines Disabled 12 | . . 1 . 10 1 . . Max in Single Turn 3 | . . 1 . 3 1 . . Machines Repaired . | . . . . . . . . Machines Dismantled . | . . . . . . . . Machines Sabotaged . | . . . . . . . . Overloaded Fab Kills . | . . . . . . . . Hacking | -11 -10 -9 -8 -7 -7 -7 -6 --------- Run | Yrd Mat Mat Mat Fac Low Dat Pro Machines Accessed 26 | . 5 8 6 3 . 4 . Terminals 17 | . 5 6 4 2 . . . Fabricators 1 | . . . . 1 . . . Repair Stations 3 | . . 1 2 . . . . Recycling Units . | . . . . . . . . Scanalyzers 1 | . . 1 . . . . . Garrison Access . | . . . . . . . . Total Hacks 107 | . 14 31 20 10 . 32 . Successful 75 | . 5 20 15 3 . 32 . Failed 30 | . 9 10 4 7 . . . Catastrophic 5 | . 2 1 1 1 . . . Database Lockouts 2 | . . 1 1 . . . . Manual 58 | . 22 19 10 7 . . . Terminals 56 | . 14 23 12 7 . . . Fabricators 3 | . . . . 3 . . . Repair Stations 14 | . . 6 8 . . . . Recycling Units . | . . . . . . . . Scanalyzers 2 | . . 2 . . . . . Garrison Access . | . . . . . . . . Terminal Hacks 55 | . 3 11 7 2 . 32 . Record 13 | . . 1 1 . . 11 . Part Schematic 11 | . . . . . . 11 . Robot Schematic 9 | . . 2 . . . 7 . Robot Analysis 5 | . 3 . 2 . . . . Prototype ID Bank 4 | . . 1 . . . 3 . Branch Access Points 1 | . . 1 . . . . . Terminal Index 1 | . . . 1 . . . . Alert Level 2 | . . 1 1 . . . . Unreport Threat 7 | . . 3 2 2 . . . Locate Traps 1 | . . 1 . . . . . Surveillance Status 1 | . . 1 . . . . . Fabricator Hacks 1 | . . . . 1 . . . Load Schematic 1 | . . . . 1 . . . Repair Station Hacks 13 | . . 6 7 . . . . Scan Component 7 | . . 3 4 . . . . Repair 6 | . . 3 3 . . . . Recycling Unit Hacks . | . . . . . . . . Scanalyzer 2 | . . 2 . . . . . Insert Component 1 | . . 1 . . . . . Analyze 1 | . . 1 . . . . . Garrison Access Hacks . | . . . . . . . . Unauthorized Hacks 4 | . 2 1 1 . . . . Terminals 4 | . 2 1 1 . . . . Assimilate 1 | . 1 . . . . . . Operators 3 | . 1 1 1 . . . . Fabricators . | . . . . . . . . Repair Stations . | . . . . . . . . Recycling Units . | . . . . . . . . Scanalyzers . | . . . . . . . . Garrison Access . | . . . . . . . . Data Cores Recovered 2 | . . . 1 1 . . . Used 1 | . . . 1 . . . . Hacking Detections 22 | . 5 8 6 3 . . . Full Trace Events 3 | . 1 1 1 . . . . Feedback Events . | . . . . . . . . Feedback Blocked . | . . . . . . . . Robot Schematics Acquired 9 | . . 2 . . . 7 . Robots Built . | . . . . . . . . Authchips . | . . . . . . . . Time . | . . . . . . . . Total Robot Build Rating . | . . . . . . . . Part Schematics Acquired 11 | . . . . . . 11 . Parts Built . | . . . . . . . . Authchips . | . . . . . . . . Time . | . . . . . . . . Total Part Build Rating . | . . . . . . . . Parts Repaired 6 | . . 3 3 . . . . Time 199 | . . 84 115 . . . . Parts Recycled . | . . . . . . . . Recycled Matter . | . . . . . . . . Retrieved Matter . | . . . . . . . . Retrieved Components . | . . . . . . . . Parts Scanalyzed 1 | . . 1 . . . . . Part Schematics Acquired . | . . . . . . . . Parts Damaged . | . . . . . . . . Bothacking | -11 -10 -9 -8 -7 -7 -7 -6 ------------ Run | Yrd Mat Mat Mat Fac Low Dat Pro Used RIF Installer . | . . . . . . . . Robots Hacked . | . . . . . . . . Non-combat . | . . . . . . . . Combat . | . . . . . . . . Robot Hacks Applied . | . . . . . . . . Relay Couplers Released . | . . . . . . . . Fabnet Peak Effective % . | . . . . . . . . Robots Rewired . | . . . . . . . . Allies Hacked . | . . . . . . . . Hacks Repelled . | . . . . . . . . Allies | -11 -10 -9 -8 -7 -7 -7 -6 -------- Run | Yrd Mat Mat Mat Fac Low Dat Pro Total Allies 1 | . . . . . . . 1 Largest Group 1 | . . . . . . . 1 Highest-Rated Group 96 | . . . . . . . 96 Highest-Rated Ally 96 | . . . . . . . 96 Total Orders . | . . . . . . . . Ally Attacks 2 | . . . . . . . 2 Total Damage 153 | . . . . . . . 153 Kills . | . . . . . . . . Allies Corrupted . | . . . . . . . . Allies Melted . | . . . . . . . . Intel | -11 -10 -9 -8 -7 -7 -7 -6 ------- Run | Yrd Mat Mat Mat Fac Low Dat Pro Robot Analysis Total 5 | . 3 . 2 . . . . Derelict Logs Recovered . | . . . . . . . . Drone Launches . | . . . . . . . . Drone Recoveries . | . . . . . . . . Exploration | -11 -10 -9 -8 -7 -7 -7 -6 ------------- Run | Yrd Mat Mat Mat Fac Low Dat Pro Turns Passed 7344 | 74 1133 2102 1625 1462 345 116 487 Spaces Moved 4385 | 42 749 1026 881 816 333 116 422 Core 152 | 42 . . . . . . 110 Treads . | . . . . . . . . Legs 3151 | . 468 1026 881 776 . . . Wheels 1082 | . 281 . . 40 333 116 312 Hover . | . . . . . . . . Flight . | . . . . . . . . Fastest Speed 50 | 50 90 120 112 100 100 100 50 Average Speed 116 | 144 109 124 118 129 100 100 90 Slowest Speed 400 | 200 120 260 120 190 100 100 400 Overloaded Moves . | . . . . . . . . Propulsion Burnouts . | . . . . . . . . Robots Hopped . | . . . . . . . . Cave-ins Triggered 1 | . . . . 1 . . . Exploration Rate (%) 53 | 4 78 72 67 19 63 75 53 Regions Visited 7 Branch Regions 3 Pre-discovered Areas 1 | . . . . . . 1 . Known Exits Taken . | . . . . . . . . Unknown Exits Taken 7 | 1 1 1 1 1 1 1 . Scrap Searched 3 | . . . . . 2 . 1 Spaces Dug 5 | . . . . 5 . . . Terrain Destroyed 103 | . 3 . . 100 . . . Melee 5 | . . . . 5 . . . Projectile . | . . . . . . . . AOE 98 | . 3 . . 95 . . . Terrain Rammed . | . . . . . . . . Walls Destroyed . | . . . . . . . . Machines Disabled . | . . . . . . . . Actions | -11 -10 -9 -8 -7 -7 -7 -6 --------- Run | Yrd Mat Mat Mat Fac Low Dat Pro Total 5843 | 53 940 1589 1237 1051 339 116 518 Wait 791 | . 84 364 162 112 . 1 68 Move 4378 | 41 748 1025 880 815 332 115 422 Hop . | . . . . . . . . Pick Up 64 | 6 12 16 11 13 2 . 4 Fast Attach 44 | 6 6 9 9 8 3 . 3 Attach 37 | . 3 6 9 16 . . 3 Detach 6 | . . 2 3 1 . . . Swap 25 | . 6 6 10 3 . . . Drop 61 | . 12 17 20 1 . . 11 Fire 394 | . 68 143 133 50 . . . Melee 41 | . . . . 32 2 . 7 Ram . | . . . . . . . . Kick 2 | . 1 1 . . . . . Crush . | . . . . . . . . Escape Stasis . | . . . . . . . . Rewire . | . . . . . . . . Trap . | . . . . . . . . Miscellaneous . | . . . . . . . . Route ------- -11/Scrapyard -10/Materials (discovered 3 exits: *Mat x2 / [*Min]) -9/Materials (discovered 3 exits: *Mat x2 / Min) -8/Materials -7/Factory (discovered 3 exits: [*Sto] / [*Low x2]) -7/Lower Caves -7/Data Miner -6/Proximity Caves History --------- Turn | Location | Event 17 | -11/Scrapyard | Discovered new exit (range 15) 75 | -11/Scrapyard | Entered Materials 306 | -10/Materials | Build established: Mutant 516 | -10/Materials | Discovered new exit (range 15) 901 | -10/Materials | Discovered new exit (range 9) 1190 | -10/Materials | Discovered new exit (range 8) 1208 | -10/Materials | Entered another Materials area 1208 | -9/Materials | Evolved 2 slots: Propulsion x1, Utility x1 1784 | -9/Materials | Build established: Scavenger-Mutant 1954 | -9/Materials | Discovered new exit (range 5) 2303 | -9/Materials | Central database locked down 2699 | -9/Materials | Repaired Imp. Ion Engine 2732 | -9/Materials | Repaired Aluminum Leg 2760 | -9/Materials | Repaired Aluminum Leg 2950 | -9/Materials | Identified exit to Mines 3050 | -9/Materials | Discovered new exit (range 15) 3310 | -9/Materials | Entered another Materials area 3310 | -8/Materials | Evolved 2 slots: Propulsion x1, Utility x1 3732 | -8/Materials | Repaired Aluminum Leg 4348 | -8/Materials | Repaired Imp. Assault Rifle 4393 | -8/Materials | Repaired Imp. Heat Sink 4830 | -8/Materials | Central database locked down 4925 | -8/Materials | Discovered new exit (range 5) 4935 | -8/Materials | Entered Factory 4935 | -7/Factory | Evolved 2 slots: Utility x2 4945 | -7/Factory | Discovered new exit (range 20) 5387 | -7/Factory | Lost 6 parts (2p1n3u) 5462 | -7/Factory | Discovered new exit (range 5) 5617 | -7/Factory | System corruption reached 10% 5650 | -7/Factory | Lost 3 parts (1p2u) 5869 | -7/Factory | Crushed by falling debris 5910 | -7/Factory | System corruption reached 30% 5918 | -7/Factory | Lost 8 parts (4n2u2w) 6138 | -7/Factory | Lost 4 parts (1p2n1u) 6147 | -7/Factory | Discovered new exit (range 11) 6226 | -7/Factory | Cargo convoy interrupted 6397 | -7/Factory | Entered Lower Caves 6648 | -7/Lower Caves | Encountered a Warlord checkpoint 6704 | -7/Lower Caves | Build established: Gladiator 6718 | -7/Lower Caves | A Derelict revealed a hidden shortcut to meet someone special 6742 | -7/Lower Caves | Entered Data Miner 6742 | -7/Data Miner | Discovered new exit (range 6) 6762 | -7/Data Miner | Met Data Miner 6824 | -7/Data Miner | Learned location of Section 7 (-2) 6824 | -7/Data Miner | Acquired the access code to Warlord's prototype stash 6834 | -7/Data Miner | Received God Mode back door access code from Data Miner 6858 | -7/Data Miner | Entered Proximity Caves 6887 | -6/Proximity Caves | Attracted the attention of an 0b10 checkpoint 7111 | -6/Proximity Caves | Core integrity fell below 50% 7196 | -6/Proximity Caves | Build established: Scavenger-Gladiator 7229 | -6/Proximity Caves | Spotted B-75 Beast 7303 | -6/Proximity Caves | Lost 4 parts (3n1w) 7330 | -6/Proximity Caves | Core integrity fell below 20% 7345 | -6/Proximity Caves | Destroyed by S-27 Virus with Autogun Last Messages --------------- 07272_ Carbon-fiber Leg destroyed. 07274_ System corrupted: Energy discharge (-53). 07280_ Dropped Power Maul. 07284_ Dropped Imp. Deuterium Engine. 07285_ Dropped Hvy. Assault Rifle. 07286_ Dropped Imp. Assault Rifle. 07286_ Dropped Melee Analysis Suite. 07288_ Dropped Power Maul. 07288_ Dropped Med. Storage Unit. 07294_ System corrupted: Matter fused (-5). 07309_ Acquired 4 matter. 07311_ Acquired 3 matter. 07311_ Acquired 4 matter. 07312_ System corrupted: Matter fused (-6). 07312_ Acquired 2 matter. 07312_ Acquired 4 matter. 07327_ System corrupted: Energy discharge (-35). 07343_ Target Analyzer destroyed. 07343_ Imp. Heat Sink destroyed. 07345_ System corrupted: Energy discharge (-22). Map ----- +----------------------------------------------------+ | # ### #??# ##????## #?? | | ####?#####?## #####?# #?# | | ##?????????## ### ## #### | | #?????????# ##### #### | | %=# #????????# ### ##### #### | | # ! ###????????# #?# ##?# | | ## ##????????# ??# ## ##### ####??# | | ##??????# ??# ### ##### #?????# | | # #?????# ??# #? ## ##????## | | # #????# #?## ### #?????# | | # ##?? #??# ##?# #?????# % | | ### ####??# ###??# ##????# | | ######?##??# ##????## ###### | | ## #?????# ##?###### #??????## | | ?# #????# #??????# #???????## # * "%" | | ?#### ##?## #??????# ##?################## | | ????# ### #??????# ### ##??## ##### | | ???## ## ##??????# #?## | | #### [ #??????## ### | | ##??#### #??# ##### | | #??# #???# #? | | # ## ##??# ##?## #? | | # #########???# ##### ### #? | | # #??????????## #???## ## #? | | ####???????# sss##???# ## #? | | ## #???????# @#???## #? | | # #### #???????## #???## ##? | | ####??## #????????##### #????######## ####?? | | ????????####????????????####???????????## #????? | | ????????????????????????????????????????# #????? | | ???????????????????????????????????????? ???? | | ???????????????????????????????????????? ??? | | ???????????????????????????????????????? ?? | | ????????????????????????????????????????# # | | ????????????????????????????????????????## # | | ?????????????????????????????????????????? # | | ??????????????????????????????????????????# # | | ??????????????????????????????????????????? | | ?????????????????????????????????????????????? | | ?????????????????????????????????????????????? | | ?????????????????????????????????????????????? | | ?????????????????????????????????????????????? | | ??????????????????????????????????????????????? | | ??????????????????????????????????????????????? | | ?????????????????????????????????????????????????? | | ????????????????????????????????????????????????? | | ???????????????????????????????????????????????? | | ????????????????????????????????????????????????? | | ????????????????????????????????????????????????? | | ?????????????????????????????????????????????????? | +----------------------------------------------------+ Best States ------------- Heat Dissipation 48 Energy Generation 16 Energy Capacity 290 Matter Stores 400 Matter Capacity 400 Sight Range 20 Terrain Scan Density 10 Armor Coverage 150 Power Shielding 66 Evasion (%) 55 Targeting Accuracy 5 Melee Accuracy 6 Target Analysis 7 Force Boost 20 Offensive Hacking 30 Item Schematics ----------------- Combat Drone Bay | -7/Data Miner | Free Lgt. Regenerative Plating | -7/Data Miner | Free Biomechanical Wings | -7/Data Miner | Free Gravity Neutralizer | -7/Data Miner | Free Imp. Heavy Machine Gun | -7/Data Miner | Free Antigrav System | -7/Data Miner | Free Imp. Shock Absorption System | -7/Data Miner | Free Variable Charge Gun | -7/Data Miner | Free Hyp. Gauss Cannon | -7/Data Miner | Free Myomer Leg | -7/Data Miner | Free Adv. Transmission Jammer | -7/Data Miner | Free Robot Schematics ------------------ W-16 Scout | -9/Materials | Hacked O-16 Technician | -9/Materials | Hacked L-41 Fighter | -7/Data Miner | Free W-25 Informer | -7/Data Miner | Free Y-54 Guardian | -7/Data Miner | Free O-24 Administrator | -7/Data Miner | Free G-50 Soldier | -7/Data Miner | Free S-27 Virus | -7/Data Miner | Free A-15 Conveyor | -7/Data Miner | Free Fabricated ------------ Nothing Alien Tech Used ----------------- None Achievements -------------- None Challenges ------------ None Game ------ Seed MeleeHeatField Manual? 0 Play Time 00:57:01 Cumulative 92.7 hours Start 2024.03.13 @ 22:30:33 End 2024.03.13 @ 23:55:50 Sessions 1 Manual Loads 0 Difficulty Rogue Special Mode None Game No. 95 Rogue 95 Adventurer 0 Explorer 0 Win Type - Total 0 Types 0/0/0/0/0/0/0/0/0 Lore% 34 Gallery% 48 Achievement% 33 Wizard Run 0 Options --------- Layout 2 ASCII 1 Keyboard 1 Movement Numpad Keybinds 0 Fullscreen 2 Font 32/TamsynBold Map View 50x44 Zoom Use 0% Tactical HUD 1 Map Filters NONE Filters NONE Steam 1 RUN: d1114805-99e5-4c6a-b765-fbd491ca4253